[Event "Titled Tuesday Blitz January 18 2022"]
[White "Csonka, Balazs"]
[Black "Savchenko, Boris"]
[WhiteFideId "742910"]
[BlackFideId "4147332"]
[WhiteElo "2404"]
[BlackElo "2512"]
[Result "0-1"]
[Round "06"]
[TimeControl "180+1"]
[Date "2022.01.18"]
[WhiteClock "0:00:01"]
[BlackClock "0:01:50"]

1. d4 {[%clk 0:03:00]}  Nf6 {[%clk 0:02:59]} 2. Nf3 {[%clk 0:02:59]}  e6 {[%clk 0:02:59]} 3. c4 {[%clk 0:02:56]}  b6 {[%clk 0:02:59]} 4. g3 {[%clk 0:02:55]}  Bb4+ {[%clk 0:02:58]} 5. Bd2 {[%clk 0:02:54]}  c5 {[%clk 0:02:57]} 6. Bg2 {[%clk 0:02:53]}  Bb7 {[%clk 0:02:57]} 7. O-O {[%clk 0:02:52]}  O-O {[%clk 0:02:55]} 8. Bc3 {[%clk 0:02:48]}  d5 {[%clk 0:02:52]} 9. Ne5 {[%clk 0:02:37]}  Nbd7 {[%clk 0:02:51]} 10. a3 {[%clk 0:02:26]}  Nxe5 {[%clk 0:02:48]} 11. dxe5 {[%clk 0:02:23]}  Bxc3 {[%clk 0:02:48]} 12. Nxc3 {[%clk 0:02:24]}  Ne4 {[%clk 0:02:48]} 13. Nxe4 {[%clk 0:01:50]}  dxe4 {[%clk 0:02:45]} 14. Qxd8 {[%clk 0:01:50]}  Rfxd8 {[%clk 0:02:42]} 15. Rfd1 {[%clk 0:01:50]}  Rd4 {[%clk 0:02:34]} 16. Rxd4 {[%clk 0:00:59]}  cxd4 {[%clk 0:02:34]} 17. Rd1 {[%clk 0:01:00]}  Rd8 {[%clk 0:02:33]} 18. f3 {[%clk 0:00:52]}  e3 {[%clk 0:02:29]} 19. f4 {[%clk 0:00:51]}  Ba6 {[%clk 0:02:29]} 20. b3 {[%clk 0:00:46]}  b5 {[%clk 0:02:24]} 21. cxb5 {[%clk 0:00:24]}  Bxb5 {[%clk 0:02:24]} 22. Bf1 {[%clk 0:00:18]}  g5 {[%clk 0:02:18]} 23. fxg5 {[%clk 0:00:13]}  Kg7 {[%clk 0:02:16]} 24. h4 {[%clk 0:00:12]}  Kg6 {[%clk 0:02:10]} 25. g4 {[%clk 0:00:12]}  a5 {[%clk 0:02:04]} 26. Kh2 {[%clk 0:00:11]}  a4 {[%clk 0:02:00]} 27. b4 {[%clk 0:00:07]}  Bc4 {[%clk 0:02:00]} 28. Kg3 {[%clk 0:00:06]}  Bb3 {[%clk 0:02:00]} 29. Rc1 {[%clk 0:00:06]}  h6 {[%clk 0:01:56]} 30. gxh6 {[%clk 0:00:05]}  f6 {[%clk 0:01:56]} 31. exf6 {[%clk 0:00:04]}  e5 {[%clk 0:01:52]} 32. g5 {[%clk 0:00:04]}  e4 {[%clk 0:01:53]} 33. Kf4 {[%clk 0:00:03]}  d3 {[%clk 0:01:51]} 34. exd3 {[%clk 0:00:02]}  exd3 {[%clk 0:01:52]} 35. Rc7 {[%clk 0:00:01]}  e2 {[%clk 0:01:50]} 0-1


[Site "https://www.chess.com"]

[Event "Titled Tuesday Blitz January 18 2022"]
[White "Danielian, Vardan"]
[Black "Seo, Jung Min"]
[WhiteFideId "13301594"]
[BlackFideId "1734687"]
[WhiteElo "2522"]
[BlackElo "2401"]
[Result "0-1"]
[Round "06"]
[TimeControl "180+1"]
[Date "2022.01.18"]
[WhiteClock "0:00:06"]
[BlackClock "0:01:42"]

1. Nf3 {[%clk 0:03:00]}  Nf6 {[%clk 0:02:59]} 2. g3 {[%clk 0:03:00]}  d5 {[%clk 0:03:00]} 3. Bg2 {[%clk 0:02:58]}  Bf5 {[%clk 0:03:00]} 4. O-O {[%clk 0:02:59]}  c6 {[%clk 0:03:00]} 5. b3 {[%clk 0:02:59]}  Nbd7 {[%clk 0:03:00]} 6. Bb2 {[%clk 0:02:59]}  e6 {[%clk 0:03:00]} 7. d3 {[%clk 0:02:59]}  h6 {[%clk 0:03:00]} 8. Nbd2 {[%clk 0:03:00]}  Be7 {[%clk 0:03:00]} 9. e4 {[%clk 0:02:57]}  Bh7 {[%clk 0:02:49]} 10. Qe2 {[%clk 0:02:57]}  O-O {[%clk 0:02:48]} 11. Rfe1 {[%clk 0:02:42]}  a5 {[%clk 0:02:47]} 12. a3 {[%clk 0:02:38]}  Qc7 {[%clk 0:02:43]} 13. h3 {[%clk 0:02:29]}  Rfd8 {[%clk 0:02:42]} 14. Rac1 {[%clk 0:02:21]}  Bf8 {[%clk 0:02:41]} 15. c4 {[%clk 0:02:06]}  dxe4 {[%clk 0:02:37]} 16. Nxe4 {[%clk 0:01:56]}  Nxe4 {[%clk 0:02:34]} 17. dxe4 {[%clk 0:01:41]}  Nc5 {[%clk 0:02:34]} 18. Rcd1 {[%clk 0:00:43]}  Nxb3 {[%clk 0:02:26]} 19. Ne5 {[%clk 0:00:40]}  Nc5 {[%clk 0:02:23]} 20. Ng4 {[%clk 0:00:34]}  Rxd1 {[%clk 0:02:09]} 21. Rxd1 {[%clk 0:00:34]}  Rd8 {[%clk 0:02:07]} 22. h4 {[%clk 0:00:34]}  Rxd1+ {[%clk 0:02:06]} 23. Qxd1 {[%clk 0:00:35]}  Qd7 {[%clk 0:01:48]} 24. Nxh6+ {[%clk 0:00:22]}  gxh6 {[%clk 0:01:47]} 25. Qg4+ {[%clk 0:00:22]}  Bg6 {[%clk 0:01:47]} 26. h5 {[%clk 0:00:22]}  Qd2 {[%clk 0:01:47]} 27. Bf6 {[%clk 0:00:13]}  Nd7 {[%clk 0:01:43]} 28. Bh4 {[%clk 0:00:06]}  Ne5 {[%clk 0:01:42]} 0-1


[Site "https://www.chess.com"]

[Event "Titled Tuesday Blitz January 18 2022"]
[White "De Silva, L M S T"]
[Black "Dolzhykova, Kateryna"]
[WhiteFideId "9953698"]
[BlackFideId "14113414"]
[WhiteElo "1631"]
[BlackElo "2165"]
[Result "1-0"]
[Round "06"]
[TimeControl "180+1"]
[Date "2022.01.18"]
[WhiteClock "0:01:11"]
[BlackClock "0:00:05"]

1. e4 {[%clk 0:03:00]}  c5 {[%clk 0:02:59]} 2. Nf3 {[%clk 0:03:01]}  Nc6 {[%clk 0:02:58]} 3. Bb5 {[%clk 0:03:01]}  g6 {[%clk 0:02:58]} 4. O-O {[%clk 0:02:55]}  Bg7 {[%clk 0:02:58]} 5. c3 {[%clk 0:02:55]}  a6 {[%clk 0:02:47]} 6. Bxc6 {[%clk 0:02:54]}  dxc6 {[%clk 0:02:48]} 7. d3 {[%clk 0:02:55]}  e5 {[%clk 0:02:48]} 8. Qe2 {[%clk 0:02:55]}  Ne7 {[%clk 0:02:41]} 9. a4 {[%clk 0:02:55]}  O-O {[%clk 0:02:35]} 10. a5 {[%clk 0:02:56]}  f6 {[%clk 0:02:34]} 11. Be3 {[%clk 0:02:55]}  Qd6 {[%clk 0:02:33]} 12. Na3 {[%clk 0:02:55]}  Be6 {[%clk 0:02:33]} 13. Nc4 {[%clk 0:02:54]}  Bxc4 {[%clk 0:02:33]} 14. dxc4 {[%clk 0:02:55]}  Nc8 {[%clk 0:01:33]} 15. Rfd1 {[%clk 0:02:54]}  Qe7 {[%clk 0:01:33]} 16. Rd3 {[%clk 0:02:54]}  Rf7 {[%clk 0:01:18]} 17. Rad1 {[%clk 0:02:53]}  Bf8 {[%clk 0:01:17]} 18. Rd8 {[%clk 0:02:51]}  Nb6 {[%clk 0:01:16]} 19. Rxf8+ {[%clk 0:02:47]}  Rfxf8 {[%clk 0:01:11]} 20. axb6 {[%clk 0:02:48]}  Rfd8 {[%clk 0:01:11]} 21. Nd2 {[%clk 0:02:44]}  a5 {[%clk 0:01:00]} 22. Nb3 {[%clk 0:02:43]}  Rxd1+ {[%clk 0:01:00]} 23. Qxd1 {[%clk 0:02:44]}  Rd8 {[%clk 0:01:00]} 24. Qe2 {[%clk 0:02:44]}  a4 {[%clk 0:00:44]} 25. Nxc5 {[%clk 0:02:43]}  Ra8 {[%clk 0:00:43]} 26. h3 {[%clk 0:02:34]}  a3 {[%clk 0:00:36]} 27. bxa3 {[%clk 0:02:34]}  Rxa3 {[%clk 0:00:37]} 28. Qg4 {[%clk 0:02:31]}  f5 {[%clk 0:00:15]} 29. exf5 {[%clk 0:02:29]}  Rxc3 {[%clk 0:00:15]} 30. fxg6 {[%clk 0:02:26]}  Rxe3 {[%clk 0:00:14]} 31. gxh7+ {[%clk 0:02:26]}  Kxh7 {[%clk 0:00:12]} 32. Qf5+ {[%clk 0:02:21]}  Kh8 {[%clk 0:00:06]} 33. Qc8+ {[%clk 0:01:34]}  Kh7 {[%clk 0:00:05]} 34. Qxb7 {[%clk 0:01:07]}  Qxb7 {[%clk 0:00:04]} 35. Nxb7 {[%clk 0:01:08]}  Re1+ {[%clk 0:00:04]} 36. Kh2 {[%clk 0:01:08]}  Rb1 {[%clk 0:00:05]} 37. c5 {[%clk 0:01:08]}  Kg6 {[%clk 0:00:03]} 38. Nd8 {[%clk 0:01:09]}  Kf6 {[%clk 0:00:02]} 39. Nxc6 {[%clk 0:01:09]}  Ke6 {[%clk 0:00:02]} 40. b7 {[%clk 0:01:09]}  Rxb7 {[%clk 0:00:01]} 41. Nd8+ {[%clk 0:01:09]}  Kd5 {[%clk 0:00:02]} 42. Nxb7 {[%clk 0:01:10]}  Kc6 {[%clk 0:00:03]} 43. Nd6 {[%clk 0:01:08]}  Kxc5 {[%clk 0:00:03]} 44. Ne4+ {[%clk 0:01:09]}  Kd4 {[%clk 0:00:03]} 45. f3 {[%clk 0:01:10]}  Ke3 {[%clk 0:00:04]} 46. h4 {[%clk 0:01:11]}  Kf4 {[%clk 0:00:05]} 1-0


[Site "https://www.chess.com"]

[Event "Titled Tuesday Blitz January 18 2022"]
[White "Demchenko, Anton"]
[Black "Vazquez, Facundo"]
[WhiteFideId "4160258"]
[BlackFideId "3007669"]
[WhiteElo "2539"]
[BlackElo "1984"]
[Result "1/2-1/2"]
[Round "06"]
[TimeControl "180+1"]
[Date "2022.01.18"]
[WhiteClock "0:00:02"]
[BlackClock "0:00:06"]

1. e4 {[%clk 0:02:45]}  c5 {[%clk 0:02:58]} 2. Nf3 {[%clk 0:02:45]}  e6 {[%clk 0:02:58]} 3. g3 {[%clk 0:02:45]}  Nc6 {[%clk 0:02:57]} 4. Bg2 {[%clk 0:02:46]}  d5 {[%clk 0:02:58]} 5. exd5 {[%clk 0:02:46]}  exd5 {[%clk 0:02:56]} 6. O-O {[%clk 0:02:47]}  Bd6 {[%clk 0:02:56]} 7. d4 {[%clk 0:02:46]}  cxd4 {[%clk 0:02:49]} 8. Nxd4 {[%clk 0:02:44]}  Nge7 {[%clk 0:02:49]} 9. Nc3 {[%clk 0:02:42]}  O-O {[%clk 0:02:40]} 10. Ndb5 {[%clk 0:02:35]}  Be6 {[%clk 0:02:29]} 11. Nxd6 {[%clk 0:02:31]}  Qxd6 {[%clk 0:02:27]} 12. Ne2 {[%clk 0:02:14]}  d4 {[%clk 0:02:22]} 13. Nf4 {[%clk 0:02:08]}  Bf5 {[%clk 0:02:15]} 14. Nd3 {[%clk 0:02:05]}  Ng6 {[%clk 0:02:06]} 15. h4 {[%clk 0:01:54]}  Rfe8 {[%clk 0:01:43]} 16. h5 {[%clk 0:01:46]}  Nge5 {[%clk 0:01:39]} 17. Bf4 {[%clk 0:01:41]}  Qf6 {[%clk 0:01:31]} 18. Nxe5 {[%clk 0:01:03]}  Nxe5 {[%clk 0:01:29]} 19. Re1 {[%clk 0:01:03]}  Nc6 {[%clk 0:01:22]} 20. Qd2 {[%clk 0:00:57]}  h6 {[%clk 0:01:14]} 21. Bf3 {[%clk 0:00:50]}  Rad8 {[%clk 0:01:10]} 22. Rxe8+ {[%clk 0:00:29]}  Rxe8 {[%clk 0:01:08]} 23. Kg2 {[%clk 0:00:24]}  Qe6 {[%clk 0:00:58]} 24. a3 {[%clk 0:00:15]}  Be4 {[%clk 0:00:55]} 25. Bxe4 {[%clk 0:00:16]}  Qxe4+ {[%clk 0:00:54]} 26. Kg1 {[%clk 0:00:17]}  Qf3 {[%clk 0:00:50]} 27. Re1 {[%clk 0:00:15]}  Rxe1+ {[%clk 0:00:49]} 28. Qxe1 {[%clk 0:00:16]}  Qxh5 {[%clk 0:00:48]} 29. Qe8+ {[%clk 0:00:15]}  Kh7 {[%clk 0:00:48]} 30. Qe4+ {[%clk 0:00:16]}  Qg6 {[%clk 0:00:47]} 31. Qe2 {[%clk 0:00:16]}  Qe6 {[%clk 0:00:43]} 32. Qd3+ {[%clk 0:00:16]}  f5 {[%clk 0:00:40]} 33. Kf1 {[%clk 0:00:14]}  Qe4 {[%clk 0:00:35]} 34. Qb3 {[%clk 0:00:13]}  Qh1+ {[%clk 0:00:28]} 35. Ke2 {[%clk 0:00:13]}  Qe4+ {[%clk 0:00:26]} 36. Kd2 {[%clk 0:00:10]}  b6 {[%clk 0:00:19]} 37. f3 {[%clk 0:00:08]}  Qe7 {[%clk 0:00:16]} 38. Qd3 {[%clk 0:00:08]}  Qe6 {[%clk 0:00:16]} 39. g4 {[%clk 0:00:08]}  g6 {[%clk 0:00:15]} 40. g5 {[%clk 0:00:03]}  hxg5 {[%clk 0:00:15]} 41. Bxg5 {[%clk 0:00:04]}  Ne5 {[%clk 0:00:15]} 42. Qf1 {[%clk 0:00:04]}  Qd5 {[%clk 0:00:14]} 43. Qh3+ {[%clk 0:00:04]}  Kg8 {[%clk 0:00:14]} 44. Ke2 {[%clk 0:00:03]}  d3+ {[%clk 0:00:14]} 45. cxd3 {[%clk 0:00:03]}  Qxd3+ {[%clk 0:00:14]} 46. Kf2 {[%clk 0:00:04]}  Qc2+ {[%clk 0:00:14]} 47. Kg3 {[%clk 0:00:05]}  Qd3 {[%clk 0:00:14]} 48. Kg2 {[%clk 0:00:04]}  Qe2+ {[%clk 0:00:14]} 49. Kh1 {[%clk 0:00:04]}  Nxf3 {[%clk 0:00:14]} 50. Bf4 {[%clk 0:00:02]}  Qe1+ {[%clk 0:00:13]} 51. Kg2 {[%clk 0:00:02]}  Qe2+ {[%clk 0:00:13]} 52. Kh1 {[%clk 0:00:03]}  Qe4 {[%clk 0:00:12]} 53. Qg3 {[%clk 0:00:02]}  Nh4+ {[%clk 0:00:11]} 54. Kg1 {[%clk 0:00:02]}  Nf3+ {[%clk 0:00:08]} 55. Kf2 {[%clk 0:00:03]}  g5 {[%clk 0:00:06]} 56. Bxg5 {[%clk 0:00:03]}  Nxg5 {[%clk 0:00:06]} 57. Qxg5+ {[%clk 0:00:04]}  Kf7 {[%clk 0:00:07]} 58. Qh5+ {[%clk 0:00:04]}  Ke6 {[%clk 0:00:07]} 59. Qe8+ {[%clk 0:00:05]}  Kd5 {[%clk 0:00:07]} 60. Qd7+ {[%clk 0:00:05]}  Kc4 {[%clk 0:00:07]} 61. Qxa7 {[%clk 0:00:05]}  Qd4+ {[%clk 0:00:08]} 62. Kf3 {[%clk 0:00:05]}  Qxb2 {[%clk 0:00:07]} 63. Qf7+ {[%clk 0:00:03]}  Kc3 {[%clk 0:00:06]} 64. Qf6+ {[%clk 0:00:04]}  Kc2 {[%clk 0:00:07]} 65. Qxf5+ {[%clk 0:00:04]}  Kc1 {[%clk 0:00:06]} 66. Qg5+ {[%clk 0:00:02]}  Kb1 {[%clk 0:00:06]} 67. Qe3 {[%clk 0:00:03]}  Ka2 {[%clk 0:00:06]} 68. Ke4 {[%clk 0:00:03]}  Qxa3 {[%clk 0:00:05]} 69. Qxb6 {[%clk 0:00:03]}  Qb2 {[%clk 0:00:05]} 70. Qa6+ {[%clk 0:00:02]}  Kb1 {[%clk 0:00:05]} 71. Qd3+ {[%clk 0:00:01]}  Qc2 {[%clk 0:00:05]} 72. Qxc2+ {[%clk 0:00:02]}  Kxc2 {[%clk 0:00:06]} 1/2-1/2


[Site "https://www.chess.com"]

[Event "Titled Tuesday Blitz January 18 2022"]
[White "Fawzy, Adham"]
[Black "Le, Tuan Minh"]
[WhiteFideId "10613129"]
[BlackFideId "12401153"]
[WhiteElo "2817"]
[BlackElo "2941"]
[Result "1/2-1/2"]
[Round "06"]
[TimeControl "180+1"]
[Date "2022.01.18"]
[WhiteClock "0:00:09"]
[BlackClock "0:00:19"]

1. e4 {[%clk 0:03:00]}  c5 {[%clk 0:03:00]} 2. c4 {[%clk 0:03:01]}  Nc6 {[%clk 0:02:59]} 3. Nc3 {[%clk 0:03:01]}  g6 {[%clk 0:02:59]} 4. g3 {[%clk 0:03:02]}  Bg7 {[%clk 0:03:00]} 5. Bg2 {[%clk 0:03:03]}  e6 {[%clk 0:03:01]} 6. Nge2 {[%clk 0:03:03]}  Nge7 {[%clk 0:03:01]} 7. d3 {[%clk 0:03:03]}  O-O {[%clk 0:03:01]} 8. Be3 {[%clk 0:03:04]}  Nd4 {[%clk 0:03:02]} 9. O-O {[%clk 0:03:05]}  d6 {[%clk 0:03:02]} 10. Qd2 {[%clk 0:03:05]}  Nec6 {[%clk 0:03:03]} 11. Bh6 {[%clk 0:03:06]}  Ne5 {[%clk 0:02:51]} 12. Nxd4 {[%clk 0:03:03]}  Bxh6 {[%clk 0:02:46]} 13. Qxh6 {[%clk 0:03:04]}  cxd4 {[%clk 0:02:46]} 14. Ne2 {[%clk 0:03:05]}  Nxd3 {[%clk 0:02:46]} 15. Qd2 {[%clk 0:03:04]}  Ne5 {[%clk 0:02:39]} 16. Qxd4 {[%clk 0:03:01]}  Qc7 {[%clk 0:02:38]} 17. b3 {[%clk 0:02:50]}  b6 {[%clk 0:02:34]} 18. Rfd1 {[%clk 0:02:44]}  Rd8 {[%clk 0:02:34]} 19. Nc3 {[%clk 0:02:39]}  a6 {[%clk 0:02:33]} 20. Rac1 {[%clk 0:02:30]}  Rb8 {[%clk 0:02:26]} 21. f4 {[%clk 0:02:15]}  Nc6 {[%clk 0:02:25]} 22. Qe3 {[%clk 0:02:07]}  Qe7 {[%clk 0:02:08]} 23. e5 {[%clk 0:02:01]}  Bb7 {[%clk 0:01:55]} 24. exd6 {[%clk 0:01:49]}  Rxd6 {[%clk 0:01:56]} 25. Ne4 {[%clk 0:01:10]}  Rxd1+ {[%clk 0:01:56]} 26. Rxd1 {[%clk 0:01:11]}  Rd8 {[%clk 0:01:56]} 27. Rxd8+ {[%clk 0:01:07]}  Qxd8 {[%clk 0:01:57]} 28. Qc3 {[%clk 0:01:05]}  Nd4 {[%clk 0:01:56]} 29. Qe3 {[%clk 0:01:00]}  Bxe4 {[%clk 0:01:56]} 30. Bxe4 {[%clk 0:00:59]}  Qd6 {[%clk 0:01:53]} 31. Kf2 {[%clk 0:00:46]}  a5 {[%clk 0:01:53]} 32. Qd3 {[%clk 0:00:36]}  Qc5 {[%clk 0:01:51]} 33. Kf1 {[%clk 0:00:37]}  f5 {[%clk 0:01:21]} 34. Bg2 {[%clk 0:00:36]}  Kg7 {[%clk 0:01:21]} 35. a3 {[%clk 0:00:31]}  e5 {[%clk 0:01:19]} 36. fxe5 {[%clk 0:00:28]}  Qxe5 {[%clk 0:01:20]} 37. b4 {[%clk 0:00:27]}  axb4 {[%clk 0:01:18]} 38. axb4 {[%clk 0:00:28]}  f4 {[%clk 0:01:17]} 39. Qe4 {[%clk 0:00:22]}  Qf6 {[%clk 0:01:07]} 40. Qxf4 {[%clk 0:00:20]}  Nf5 {[%clk 0:01:08]} 41. Be4 {[%clk 0:00:16]}  Ne3+ {[%clk 0:01:07]} 42. Ke2 {[%clk 0:00:15]}  Qxf4 {[%clk 0:01:06]} 43. gxf4 {[%clk 0:00:16]}  Nxc4 {[%clk 0:01:07]} 44. Kd3 {[%clk 0:00:15]}  Nd6 {[%clk 0:01:06]} 45. Kd4 {[%clk 0:00:16]}  Kf6 {[%clk 0:01:06]} 46. Bc2 {[%clk 0:00:10]}  Ke6 {[%clk 0:01:05]} 47. Bd3 {[%clk 0:00:10]}  Ne8 {[%clk 0:00:57]} 48. Bc4+ {[%clk 0:00:10]}  Kd6 {[%clk 0:00:57]} 49. Be2 {[%clk 0:00:07]}  Ng7 {[%clk 0:00:57]} 50. Bg4 {[%clk 0:00:07]}  Ne8 {[%clk 0:00:55]} 51. Bf3 {[%clk 0:00:07]}  Nf6 {[%clk 0:00:55]} 52. h3 {[%clk 0:00:03]}  h6 {[%clk 0:00:55]} 53. h4 {[%clk 0:00:03]}  h5 {[%clk 0:00:54]} 54. Be4 {[%clk 0:00:03]}  Nxe4 {[%clk 0:00:16]} 55. Kxe4 {[%clk 0:00:04]}  Ke6 {[%clk 0:00:17]} 56. b5 {[%clk 0:00:04]}  Kf6 {[%clk 0:00:16]} 57. Kd5 {[%clk 0:00:04]}  Kf5 {[%clk 0:00:16]} 58. Kc6 {[%clk 0:00:05]}  Kxf4 {[%clk 0:00:17]} 59. Kxb6 {[%clk 0:00:06]}  g5 {[%clk 0:00:18]} 60. hxg5 {[%clk 0:00:07]}  Kxg5 {[%clk 0:00:15]} 61. Kc7 {[%clk 0:00:06]}  h4 {[%clk 0:00:16]} 62. b6 {[%clk 0:00:07]}  h3 {[%clk 0:00:17]} 63. b7 {[%clk 0:00:08]}  h2 {[%clk 0:00:18]} 64. b8=Q {[%clk 0:00:08]}  h1=Q {[%clk 0:00:19]} 65. Qg8+ {[%clk 0:00:09]} 1/2-1/2


[Site "https://www.chess.com"]

[Event "Titled Tuesday Blitz January 18 2022"]
[White "Goryachkina, Aleksandra"]
[Black "Timofeev, Artyom"]
[WhiteFideId "4147103"]
[BlackFideId "4140419"]
[WhiteElo "2426"]
[BlackElo "2583"]
[Result "0-1"]
[Round "06"]
[TimeControl "180+1"]
[Date "2022.01.18"]
[WhiteClock "0:00:11"]
[BlackClock "0:00:45"]

1. e4 {[%clk 0:02:59]}  c5 {[%clk 0:02:59]} 2. Nf3 {[%clk 0:02:59]}  Nc6 {[%clk 0:02:59]} 3. Bb5 {[%clk 0:02:57]}  d6 {[%clk 0:02:56]} 4. O-O {[%clk 0:02:55]}  Bd7 {[%clk 0:02:56]} 5. Re1 {[%clk 0:02:55]}  a6 {[%clk 0:02:56]} 6. Bf1 {[%clk 0:02:55]}  Bg4 {[%clk 0:02:55]} 7. h3 {[%clk 0:02:52]}  Bxf3 {[%clk 0:02:54]} 8. Qxf3 {[%clk 0:02:52]}  g6 {[%clk 0:02:54]} 9. d3 {[%clk 0:02:38]}  Bg7 {[%clk 0:02:54]} 10. c3 {[%clk 0:02:35]}  Nf6 {[%clk 0:02:53]} 11. Be3 {[%clk 0:02:34]}  Nd7 {[%clk 0:02:52]} 12. Nd2 {[%clk 0:02:33]}  O-O {[%clk 0:02:51]} 13. Qg3 {[%clk 0:02:23]}  b5 {[%clk 0:02:50]} 14. f4 {[%clk 0:02:18]}  b4 {[%clk 0:02:49]} 15. Rac1 {[%clk 0:02:14]}  bxc3 {[%clk 0:02:47]} 16. bxc3 {[%clk 0:02:14]}  Rb8 {[%clk 0:02:48]} 17. f5 {[%clk 0:01:49]}  Rb2 {[%clk 0:02:38]} 18. Nf3 {[%clk 0:01:40]}  Nde5 {[%clk 0:02:30]} 19. Nxe5 {[%clk 0:01:32]}  Bxe5 {[%clk 0:02:29]} 20. Bf4 {[%clk 0:01:29]}  Bxf4 {[%clk 0:02:24]} 21. Qxf4 {[%clk 0:01:29]}  Rxa2 {[%clk 0:02:25]} 22. h4 {[%clk 0:01:24]}  Qb6 {[%clk 0:02:21]} 23. h5 {[%clk 0:01:21]}  Ne5 {[%clk 0:02:19]} 24. Kh1 {[%clk 0:01:16]}  a5 {[%clk 0:01:57]} 25. Rcd1 {[%clk 0:01:14]}  gxh5 {[%clk 0:01:11]} 26. Qg5+ {[%clk 0:00:53]}  Kh8 {[%clk 0:01:11]} 27. f6 {[%clk 0:00:52]}  Rg8 {[%clk 0:01:02]} 28. Qxh5 {[%clk 0:00:32]}  exf6 {[%clk 0:01:00]} 29. Be2 {[%clk 0:00:30]}  Rg6 {[%clk 0:00:48]} 30. Qh4 {[%clk 0:00:16]}  Kg7 {[%clk 0:00:47]} 31. Bh5 {[%clk 0:00:14]}  Rg5 {[%clk 0:00:46]} 32. d4 {[%clk 0:00:12]}  cxd4 {[%clk 0:00:44]} 33. cxd4 {[%clk 0:00:12]}  Ng6 {[%clk 0:00:45]} 34. Bxg6 {[%clk 0:00:11]}  Rxg6 {[%clk 0:00:45]} 0-1


[Site "https://www.chess.com"]

[Event "Titled Tuesday Blitz January 18 2022"]
[White "Grunberg, Mihai-Lucian"]
[Black "Ezat, Mohamed"]
[WhiteFideId "1204149"]
[BlackFideId "10600906"]
[WhiteElo "2364"]
[BlackElo "2386"]
[Result "0-1"]
[Round "06"]
[TimeControl "180+1"]
[Date "2022.01.18"]
[WhiteClock "0:00:05"]
[BlackClock "0:00:05"]

1. Nf3 {[%clk 0:03:00]}  Nf6 {[%clk 0:02:55]} 2. c4 {[%clk 0:03:00]}  g6 {[%clk 0:02:55]} 3. d4 {[%clk 0:02:59]}  Bg7 {[%clk 0:02:55]} 4. Nc3 {[%clk 0:03:00]}  O-O {[%clk 0:02:53]} 5. g3 {[%clk 0:03:00]}  d6 {[%clk 0:02:53]} 6. Bg2 {[%clk 0:03:00]}  Nc6 {[%clk 0:02:54]} 7. O-O {[%clk 0:03:00]}  Bg4 {[%clk 0:02:54]} 8. d5 {[%clk 0:02:56]}  Na5 {[%clk 0:02:53]} 9. Nd2 {[%clk 0:02:53]}  c5 {[%clk 0:02:52]} 10. Qc2 {[%clk 0:02:51]}  a6 {[%clk 0:02:51]} 11. a4 {[%clk 0:02:51]}  Qb6 {[%clk 0:02:49]} 12. b3 {[%clk 0:02:46]}  e5 {[%clk 0:02:42]} 13. Rb1 {[%clk 0:02:32]}  h5 {[%clk 0:02:38]} 14. Ba3 {[%clk 0:02:26]}  Qc7 {[%clk 0:02:35]} 15. h3 {[%clk 0:02:11]}  Bd7 {[%clk 0:02:33]} 16. e4 {[%clk 0:02:09]}  Rfb8 {[%clk 0:02:27]} 17. Bb2 {[%clk 0:02:02]}  h4 {[%clk 0:02:25]} 18. g4 {[%clk 0:02:01]}  b5 {[%clk 0:02:23]} 19. axb5 {[%clk 0:02:00]}  axb5 {[%clk 0:02:23]} 20. Rfe1 {[%clk 0:01:54]}  Bh6 {[%clk 0:02:21]} 21. Nf3 {[%clk 0:01:53]}  Bf4 {[%clk 0:02:20]} 22. Nxh4 {[%clk 0:01:50]}  bxc4 {[%clk 0:02:19]} 23. bxc4 {[%clk 0:01:48]}  Nxc4 {[%clk 0:02:19]} 24. Bc1 {[%clk 0:01:46]}  Rxb1 {[%clk 0:02:07]} 25. Nxb1 {[%clk 0:01:38]}  Ra4 {[%clk 0:01:52]} 26. Nc3 {[%clk 0:01:32]}  Rb4 {[%clk 0:01:52]} 27. Na2 {[%clk 0:01:27]}  Ba4 {[%clk 0:01:49]} 28. Qc3 {[%clk 0:01:19]}  Bxc1 {[%clk 0:00:38]} 29. Rxc1 {[%clk 0:01:19]}  Rb2 {[%clk 0:00:23]} 30. Qxc4 {[%clk 0:01:14]}  Bb5 {[%clk 0:00:23]} 31. Qc3 {[%clk 0:01:02]}  Rxa2 {[%clk 0:00:24]} 32. Rb1 {[%clk 0:01:00]}  Qa5 {[%clk 0:00:23]} 33. Qb3 {[%clk 0:00:50]}  Ra1 {[%clk 0:00:23]} 34. Rxa1 {[%clk 0:00:44]}  Qxa1+ {[%clk 0:00:23]} 35. Kh2 {[%clk 0:00:45]}  Qa6 {[%clk 0:00:23]} 36. Qb2 {[%clk 0:00:33]}  Nd7 {[%clk 0:00:17]} 37. Nf3 {[%clk 0:00:31]}  Qa4 {[%clk 0:00:15]} 38. Nd2 {[%clk 0:00:30]}  Qb4 {[%clk 0:00:15]} 39. Qc2 {[%clk 0:00:29]}  Nb6 {[%clk 0:00:15]} 40. Nf1 {[%clk 0:00:21]}  Nc4 {[%clk 0:00:12]} 41. Ng3 {[%clk 0:00:19]}  Qd2 {[%clk 0:00:11]} 42. Qxd2 {[%clk 0:00:17]}  Nxd2 {[%clk 0:00:11]} 43. Ne2 {[%clk 0:00:16]}  Bd3 {[%clk 0:00:09]} 44. Nc3 {[%clk 0:00:15]}  g5 {[%clk 0:00:09]} 45. Kg3 {[%clk 0:00:15]}  Nb3 {[%clk 0:00:09]} 46. h4 {[%clk 0:00:14]}  f6 {[%clk 0:00:08]} 47. hxg5 {[%clk 0:00:13]}  fxg5 {[%clk 0:00:09]} 48. f3 {[%clk 0:00:14]}  Nd4 {[%clk 0:00:09]} 49. Kf2 {[%clk 0:00:13]}  Ba6 {[%clk 0:00:08]} 50. Nd1 {[%clk 0:00:13]}  Kf7 {[%clk 0:00:08]} 51. Ne3 {[%clk 0:00:13]}  Ke7 {[%clk 0:00:08]} 52. Nf5+ {[%clk 0:00:12]}  Kd7 {[%clk 0:00:08]} 53. Nxd4 {[%clk 0:00:12]}  exd4 {[%clk 0:00:07]} 54. Bf1 {[%clk 0:00:10]}  Bxf1 {[%clk 0:00:06]} 55. Kxf1 {[%clk 0:00:10]}  Ke7 {[%clk 0:00:06]} 56. Ke2 {[%clk 0:00:10]}  Kf6 {[%clk 0:00:06]} 57. f4 {[%clk 0:00:09]}  gxf4 {[%clk 0:00:06]} 58. Kf3 {[%clk 0:00:10]}  d3 {[%clk 0:00:05]} 59. Kf2 {[%clk 0:00:07]}  c4 {[%clk 0:00:05]} 60. Ke1 {[%clk 0:00:06]}  c3 {[%clk 0:00:05]} 61. Kd1 {[%clk 0:00:05]}  f3 {[%clk 0:00:05]} 62. Ke1 {[%clk 0:00:05]}  c2 {[%clk 0:00:05]} 0-1


[Site "https://www.chess.com"]